{"text_format":"1","workbook":"xlsx","n_sheets":3,"sheets":["Sheet1","Sheet2","Sheet3"],"not_rendered":{"charts":0,"images":0,"macros":1,"external_links":0,"defined_names":1,"comments":0,"pivot_tables":0},"unopened":[],"bounds":{"document_bytes":16777216,"sheet_cells":100000,"rows_first":2000,"rows_last":500,"rows_between":2000,"halvings":0,"cell_chars":16384,"cell_head_chars":4096},"cells_cut":0,"cells_raw":0,"read":"whole","date_system":"1900"}

{"sheet":"Sheet1","index":0,"n_rows":125,"n_cols":31,"rows_kept":125,"cut":false,"hidden":false,"merged":[[68,2,72,14],[0,0,0,14],[68,0,69,1],[58,0,60,0],[58,1,60,3],[58,4,60,4],[58,9,60,9],[65,0,66,1],[62,0,63,2],[58,7,60,8],[58,5,60,6],[62,3,63,3],[65,2,66,3],[62,9,63,9],[62,8,63,8],[62,7,63,7],[62,6,63,6],[62,5,63,5],[65,5,66,5],[52,0,54,0],[52,1,54,3],[52,4,54,4],[52,9,54,9],[55,0,57,0],[55,1,57,3],[55,4,57,4],[55,9,57,9],[55,7,57,8],[55,5,57,6],[52,7,54,8],[52,5,54,6],[46,0,48,0],[46,1,48,3],[46,4,48,4],[46,9,48,9],[49,0,51,0],[49,1,51,3],[49,4,51,4],[49,9,51,9],[49,7,51,8],[49,5,51,6],[46,7,48,8],[46,5,48,6],[38,0,40,0],[38,1,40,3],[38,4,40,4],[38,9,40,9],[41,0,43,0],[41,1,43,3],[41,4,43,4],[41,9,43,9],[33,0,35,0],[33,5,35,6],[41,7,43,8],[41,5,43,6],[38,7,40,8],[38,5,40,6],[33,7,35,8],[33,1,35,3],[33,4,35,4],[33,9,35,9],[37,7,37,8],[37,5,37,6],[19,0,21,0],[19,1,21,3],[19,4,21,4],[30,0,32,0],[30,1,32,3],[30,4,32,4],[30,9,32,9],[22,0,24,0],[25,7,27,8],[25,5,27,6],[22,7,24,8],[30,7,32,8],[30,5,32,6],[25,0,27,0],[25,1,27,3],[25,4,27,4],[25,9,27,9],[29,7,29,8],[3,0,3,4],[3,5,3,7],[3,8,3,9],[14,9,16,9],[19,9,21,9],[22,9,24,9],[5,0,7,0],[8,0,10,0],[8,1,10,3],[8,4,10,4],[8,9,10,9],[11,0,13,0],[11,1,13,3],[11,4,13,4],[11,9,13,9],[5,5,7,6],[5,9,7,9],[5,4,7,4],[22,1,24,3],[22,4,24,4],[5,1,7,3],[22,5,24,6],[19,7,21,8],[19,5,21,6],[45,5,45,6],[45,7,45,8],[2,12,2,14],[72,0,72,1],[71,0,71,1],[70,0,70,1],[18,5,18,6],[18,7,18,8],[29,5,29,6],[2,0,2,4],[14,0,16,0],[14,1,16,3],[4,5,4,6],[4,7,4,8],[14,7,16,8],[14,5,16,6],[11,7,13,8],[11,5,13,6],[8,7,10,8],[8,5,10,6],[5,7,7,8],[14,4,16,4],[2,5,2,7],[2,8,2,9]]}
["CHARLOTTE HIGH- NCAA"]
[]
[null,null,null,null,null,null,null,null,null,null,null,null,"NCAA INDEX"]
[null,null,null,null,null,null,null,null,null,null,null,"C","GPA","SAT","ACT"]
["ENGLISH (4 YEARS)",null,null,null,"CREDIT","GRADE",null,"GRADE",null,"QP",null,2.2999999999999998,2,1100,86,null,null,null,null,null,"Eng",null,null,null,null,null,null,144,1600,null,2]
[1,null,null,null,null,null,null,null,null,{"$f":"SUM(U6,V6)/2","v":0},null,2.3250000000000002,2.0249999999999999,1090,86,null,null,"Grading Scale",null,null,{"$f":"IF(ISERROR(VLOOKUP(F6,$R$7:$S$19,2,FALSE)), \"\", VLOOKUP(F6,$R$7:$S$19,2,FALSE))","v":""},{"$f":"IF(ISERROR(VLOOKUP(H6,$R$7:$S$19,2,FALSE)), \"\", VLOOKUP(H6,$R$7:$S$19,2,FALSE))","v":""},null,null,null,null,null,143,1590,null,2]
[null,null,null,null,null,null,null,null,null,null,null,2.35,2.0499999999999998,1080,85,null,null,"A++",5,null,null,null,null,null,null,null,null,142,1580,null,2]
[null,null,null,null,null,null,null,null,null,null,null,2.375,2.0750000000000002,1070,84,null,null,"A+",4.5,null,null,null,null,null,null,null,null,141,1570,null,2]
[2,null,null,null,null,null,null,null,null,{"$f":"SUM(U9,V9)/2","v":0},null,2.4500000000000002,2.1,1060,83,null,null,"A",4,null,{"$f":"IF(ISERROR(VLOOKUP(F9,$R$7:$S$19,2,FALSE)), \"\", VLOOKUP(F9,$R$7:$S$19,2,FALSE))","v":""},{"$f":"IF(ISERROR(VLOOKUP(H9,$R$7:$S$19,2,FALSE)), \"\", VLOOKUP(H9,$R$7:$S$19,2,FALSE))","v":""},null,null,null,null,null,140,1560,null,2]
[null,null,null,null,null,null,null,null,null,null,null,2.4750000000000001,2.125,1050,82,null,null,"B++",4,null,null,null,null,null,null,null,null,139,1550,null,2]
[null,null,null,null,null,null,null,null,null,null,null,2.5,2.15,1040,81,null,null,"B+",3.5,null,null,null,null,null,null,null,null,138,1540,null,2]
[3,null,null,null,null,null,null,null,null,{"$f":"SUM(U12,V12)/2","v":0},null,2.5249999999999999,2.1749999999999998,1030,80,null,null,"B",3,null,{"$f":"IF(ISERROR(VLOOKUP(F12,$R$7:$S$19,2,FALSE)), \"\", VLOOKUP(F12,$R$7:$S$19,2,FALSE))","v":""},{"$f":"IF(ISERROR(VLOOKUP(H12,$R$7:$S$19,2,FALSE)), \"\", VLOOKUP(H12,$R$7:$S$19,2,FALSE))","v":""},null,null,null,null,null,137,1530,null,2]
[null,null,null,null,null,null,null,null,null,null,null,2.5499999999999998,2.2000000000000002,1020,79,null,null,"C++",3,null,null,null,null,null,null,null,null,136,1520,null,2]
[null,null,null,null,null,null,null,null,null,null,null,2.5750000000000002,2.2250000000000001,1010,78,null,null,"C+",2.5,null,null,null,null,null,null,null,null,135,1510,null,2]
[4,null,null,null,null,null,null,null,null,{"$f":"SUM(U15,V15)/2","v":0},null,2.6,2.25,1000,77,null,null,"C",2,null,{"$f":"IF(ISERROR(VLOOKUP(F15,$R$7:$S$19,2,FALSE)), \"\", VLOOKUP(F15,$R$7:$S$19,2,FALSE))","v":""},{"$f":"IF(ISERROR(VLOOKUP(H15,$R$7:$S$19,2,FALSE)), \"\", VLOOKUP(H15,$R$7:$S$19,2,FALSE))","v":""},null,null,null,null,null,134,1500,null,2]
[null,null,null,null,null,null,null,null,null,null,null,2.625,2.2749999999999999,990,76,null,null,"D++",1,null,null,null,null,null,null,null,null,133,1490,null,2]
[null,null,null,null,null,null,null,null,null,null,null,2.65,2.2999999999999998,980,75,null,null,"D+",1,null,null,null,null,null,null,null,null,132,1480,null,2]
[null,null,null,null,null,null,null,null,null,null,null,2.6749999999999998,2.3250000000000002,970,74,null,null,"D",1,null,null,null,null,null,null,null,null,131,1470,null,2]
["MATH (3 YEARS)",null,null,null,"CREDIT","GRADE",null,"GRADE",null,"QP",null,2.7,2.35,960,73,null,null,"F",0,null,"Math",null,null,"Practice",null,null,null,130,1460,null,2]
[1,null,null,null,null,null,null,null,null,{"$f":"SUM(U20,V20)/2","v":0},null,2.7250000000000001,2.375,950,72,null,null,null,null,null,{"$f":"IF(ISERROR(VLOOKUP(F20,$R$7:$S$19,2,FALSE)), \"\", VLOOKUP(F20,$R$7:$S$19,2,FALSE))","v":""},{"$f":"IF(ISERROR(VLOOKUP(H20,$R$7:$S$19,2,FALSE)), \"\", VLOOKUP(H20,$R$7:$S$19,2,FALSE))","v":""},null,"sat needed","act needed",null,null,129,1450,null,2]
[null,null,null,null,null,null,null,null,null,null,null,2.75,2.4,940,71,null,null,"*Use a + sign to signify bonus points for honors classes.",null,null,null,null,null,{"$f":"VLOOKUP($C$66, $M$5:$N$67, 2, TRUE)","v":{"$error":"#N/A"}},{"$f":"VLOOKUP($C$66, $M$5:$O$67, 3, TRUE)","v":{"$error":"#N/A"}},null,null,128,1440,null,2]
[null,null,null,null,null,null,null,null,null,null,null,2.7749999999999999,2.4249999999999998,930,70,null,null,"**Use ++ to signify bonus points for ap classes.",null,null,null,null,null,null,null,null,null,127,1430,null,2]
[2,null,null,null,null,null,null,null,null,{"$f":"SUM(U23,V23)/2","v":0},null,2.8,2.4500000000000002,920,70,null,null,"***You can adjust the grading scale to fit whatever the school's scale is,",null,null,{"$f":"IF(ISERROR(VLOOKUP(F23,$R$7:$S$19,2,FALSE)), \"\", VLOOKUP(F23,$R$7:$S$19,2,FALSE))","v":""},{"$f":"IF(ISERROR(VLOOKUP(H23,$R$7:$S$19,2,FALSE)), \"\", VLOOKUP(H23,$R$7:$S$19,2,FALSE))","v":""},null,"GPA need based on sat score",null,null,null,126,1420,null,2]
[null,null,null,null,null,null,null,null,null,null,null,2.8250000000000002,2.4750000000000001,910,69,null,null," just make sure that the grades are in order (a=4, b=3, c=2, etc…). ",null,null,null,null,null,{"$f":"VLOOKUP($V$65, $AC$5:$AE$125, 3, FALSE)","v":{"$error":"#N/A"}},null,null,null,125,1410,null,2]
[null,null,null,null,null,null,null,null,null,null,null,2.85,2.5,900,68,null,null,"For example: a=4, c=2, d=1, b=3 would not calculate correctly.",null,null,null,null,null,null,null,null,null,124,1400,null,2]
[3,null,null,null,null,null,null,null,null,{"$f":"SUM(U26,V26)/2","v":0},null,2.875,2.5249999999999999,890,67,null,null,null,null,null,{"$f":"IF(ISERROR(VLOOKUP(F26,$R$7:$S$19,2,FALSE)), \"\", VLOOKUP(F26,$R$7:$S$19,2,FALSE))","v":""},{"$f":"IF(ISERROR(VLOOKUP(H26,$R$7:$S$19,2,FALSE)), \"\", VLOOKUP(H26,$R$7:$S$19,2,FALSE))","v":""},null,"GPA needed based on act score",null,null,null,123,1390,null,2]
[null,null,null,null,null,null,null,null,null,null,null,2.9,2.5499999999999998,880,66,null,null,null,null,null,null,null,null,{"$f":"VLOOKUP($V$68, $AB$5:$AE$125, 4, FALSE)","v":{"$error":"#N/A"}},null,null,null,122,1380,null,2]
[null,null,null,null,null,null,null,null,null,null,null,2.9,2.5750000000000002,870,65,null,null,null,null,null,null,null,null,null,null,null,null,121,1370,null,2]
[null,null,null,null,null,null,null,null,null,null,null,2.9249999999999998,2.6,860,64,null,null,null,null,null,null,null,null,null,null,null,null,120,1360,null,2]
["SOCIAL SCIENCE (2 YEARS)",null,null,null,"CREDIT","GRADE",null,"GRADE",null,"QP",null,2.95,2.625,860,63,null,null,null,null,null,"Soc Sci",null,null,null,null,null,null,119,1350,null,2]
[1,null,null,null,null,null,null,null,null,{"$f":"SUM(U31,V31)/2","v":0},null,2.9750000000000001,2.65,850,62,null,null,null,null,null,{"$f":"IF(ISERROR(VLOOKUP(F31,$R$7:$S$19,2,FALSE)), \"\", VLOOKUP(F31,$R$7:$S$19,2,FALSE))","v":""},{"$f":"IF(ISERROR(VLOOKUP(H31,$R$7:$S$19,2,FALSE)), \"\", VLOOKUP(H31,$R$7:$S$19,2,FALSE))","v":""},null,null,null,null,null,118,1340,null,2]
[null,null,null,null,null,null,null,null,null,null,null,3,2.6749999999999998,840,61,null,null,null,null,null,null,null,null,null,null,null,null,117,1330,null,2]
[null,null,null,null,null,null,null,null,null,null,null,3.0249999999999999,2.7,830,61,null,null,null,null,null,null,null,null,"Competition",null,null,null,116,1320,null,2]
[2,null,null,null,null,null,null,null,null,{"$f":"SUM(U34,V34)/2","v":0},null,3.05,2.7250000000000001,820,60,null,null,null,null,null,{"$f":"IF(ISERROR(VLOOKUP(F34,$R$7:$S$19,2,FALSE)), \"\", VLOOKUP(F34,$R$7:$S$19,2,FALSE))","v":""},{"$f":"IF(ISERROR(VLOOKUP(H34,$R$7:$S$19,2,FALSE)), \"\", VLOOKUP(H34,$R$7:$S$19,2,FALSE))","v":""},null,"sat needed","act needed",null,null,115,1310,null,2]
[null,null,null,null,null,null,null,null,null,null,null,3.0750000000000002,2.75,810,59,null,null,null,null,null,null,null,null,{"$f":"VLOOKUP($C$66, $L$5:$N$67, 3, TRUE)","v":{"$error":"#N/A"}},{"$f":"VLOOKUP($V$68, $AB$57:$AD$125, 3, FALSE)","v":{"$error":"#N/A"}},null,null,114,1300,null,2]
[null,null,null,null,null,null,null,null,null,null,null,3.1,2.7749999999999999,800,58,null,null,null,null,null,null,null,null,null,null,null,null,113,1290,null,2]
[null,null,null,null,null,null,null,null,null,null,null,3.125,2.8,790,57,null,null,null,null,null,null,null,null,"GPA needed based on sat score",null,null,null,112,1280,null,2]
["NATURAL SCIENCE (2 YEARS)",null,null,null,"CREDIT","GRADE",null,"GRADE",null,"QP",null,3.125,2.8250000000000002,780,56,null,null,null,null,null,"Nat Sci",null,null,{"$f":"VLOOKUP($V$65, $AC$57:$AD$125, 2, FALSE)","v":{"$error":"#N/A"}},null,null,null,111,1270,null,2]
[1,null,null,null,null,null,null,null,null,{"$f":"SUM(U39,V39)/2","v":0},null,3.15,2.85,770,56,null,null,null,null,null,{"$f":"IF(ISERROR(VLOOKUP(F39,$R$7:$S$19,2,FALSE)), \"\", VLOOKUP(F39,$R$7:$S$19,2,FALSE))","v":""},{"$f":"IF(ISERROR(VLOOKUP(H39,$R$7:$S$19,2,FALSE)), \"\", VLOOKUP(H39,$R$7:$S$19,2,FALSE))","v":""},null,null,null,null,null,110,1260,null,2]
[null,null,null,null,null,null,null,null,null,null,null,3.1749999999999998,2.875,760,55,null,null,null,null,null,null,null,null,"GPA needed based on act score",null,null,null,109,1250,null,2]
[null,null,null,null,null,null,null,null,null,null,null,3.2,2.9,750,54,null,null,null,null,null,null,null,null,{"$f":"VLOOKUP($V$68, $AB$57:$AD$125, 3, FALSE)","v":{"$error":"#N/A"}},null,null,null,108,1240,null,2]
[2,null,null,null,null,null,null,null,null,{"$f":"SUM(U42,V42)/2","v":0},null,3.2250000000000001,2.9249999999999998,750,53,null,null,null,null,null,{"$f":"IF(ISERROR(VLOOKUP(F42,$R$7:$S$19,2,FALSE)), \"\", VLOOKUP(F42,$R$7:$S$19,2,FALSE))","v":""},{"$f":"IF(ISERROR(VLOOKUP(H42,$R$7:$S$19,2,FALSE)), \"\", VLOOKUP(H42,$R$7:$S$19,2,FALSE))","v":""},null,null,null,null,null,107,1230,null,2]
[null,null,null,null,null,null,null,null,null,null,null,3.25,2.95,740,53,null,null,null,null,null,null,null,null,null,null,null,null,106,1220,null,2]
[null,null,null,null,null,null,null,null,null,null,null,3.2749999999999999,2.9750000000000001,730,52,null,null,null,null,null,null,null,null,null,null,null,null,105,1210,null,2]
[null,null,null,null,null,null,null,null,null,null,null,3.3,3,720,52,null,null,null,null,null,null,null,null,null,null,null,null,104,1200,null,2]
["ADDITIONAL 5 (1 ENG/MATH/SCI)",null,null,null,"CREDIT","GRADE",null,"GRADE",null,"QP",null,3.3250000000000002,3.0249999999999999,710,51,null,null,null,null,null,"Add'l",null,null,null,null,null,null,103,1190,null,2]
[1,null,null,null,null,null,null,null,null,{"$f":"SUM(U47,V47)/2","v":0},null,3.35,3.05,690,50,null,null,null,null,null,{"$f":"IF(ISERROR(VLOOKUP(F47,$R$7:$S$19,2,FALSE)), \"\", VLOOKUP(F47,$R$7:$S$19,2,FALSE))","v":""},{"$f":"IF(ISERROR(VLOOKUP(H47,$R$7:$S$19,2,FALSE)), \"\", VLOOKUP(H47,$R$7:$S$19,2,FALSE))","v":""},null,null,null,null,null,102,1180,null,2]
[null,null,null,null,null,null,null,null,null,null,null,3.375,3.0750000000000002,680,50,null,null,null,null,null,null,null,null,null,null,null,null,101,1170,null,2]
[null,null,null,null,null,null,null,null,null,null,null,3.4,3.1,660,49,null,null,null,null,null,null,null,null,null,null,null,null,100,1160,null,2]
[2,null,null,null,null,null,null,null,null,{"$f":"SUM(U50,V50)/2","v":0},null,3.4249999999999998,3.125,650,49,null,null,null,null,null,{"$f":"IF(ISERROR(VLOOKUP(F50,$R$7:$S$19,2,FALSE)), \"\", VLOOKUP(F50,$R$7:$S$19,2,FALSE))","v":""},{"$f":"IF(ISERROR(VLOOKUP(H50,$R$7:$S$19,2,FALSE)), \"\", VLOOKUP(H50,$R$7:$S$19,2,FALSE))","v":""},null,null,null,null,null,99,1150,null,2]
[null,null,null,null,null,null,null,null,null,null,null,3.45,3.15,630,48,null,null,null,null,null,null,null,null,null,null,null,null,98,1140,null,2]
[null,null,null,null,null,null,null,null,null,null,null,3.4750000000000001,3.1749999999999998,620,47,null,null,null,null,null,null,null,null,null,null,null,null,97,1130,null,2]
[3,null,null,null,null,null,null,null,null,{"$f":"SUM(U53,V53)/2","v":0},null,3.5,3.2,600,47,null,null,null,null,null,{"$f":"IF(ISERROR(VLOOKUP(F53,$R$7:$S$19,2,FALSE)), \"\", VLOOKUP(F53,$R$7:$S$19,2,FALSE))","v":""},{"$f":"IF(ISERROR(VLOOKUP(H53,$R$7:$S$19,2,FALSE)), \"\", VLOOKUP(H53,$R$7:$S$19,2,FALSE))","v":""},null,null,null,null,null,96,1120,null,2]
[null,null,null,null,null,null,null,null,null,null,null,3.5249999999999999,3.2250000000000001,590,46,null,null,null,null,null,null,null,null,null,null,null,null,95,1110,null,2]
[null,null,null,null,null,null,null,null,null,null,null,3.55,3.25,580,46,null,null,null,null,null,null,null,null,null,null,null,null,94,1100,null,2]
[4,null,null,null,null,null,null,null,null,{"$f":"SUM(U56,V56)/2","v":0},null,3.5750000000000002,3.2749999999999999,560,45,null,null,null,null,null,{"$f":"IF(ISERROR(VLOOKUP(F56,$R$7:$S$19,2,FALSE)), \"\", VLOOKUP(F56,$R$7:$S$19,2,FALSE))","v":""},{"$f":"IF(ISERROR(VLOOKUP(H56,$R$7:$S$19,2,FALSE)), \"\", VLOOKUP(H56,$R$7:$S$19,2,FALSE))","v":""},null,null,null,null,null,93,1090,null,2]
[null,null,null,null,null,null,null,null,null,null,null,3.6,3.3,550,44,null,null,null,null,null,null,null,null,null,null,null,null,92,1080,2.2999999999999998,2]
[null,null,null,null,null,null,null,null,null,null,null,3.625,3.3250000000000002,530,44,null,null,null,null,null,null,null,null,null,null,null,null,91,1070,2.3250000000000002,2]
[5,null,null,null,null,null,null,null,null,{"$f":"SUM(U59,V59)/2","v":0},null,3.65,3.35,520,43,null,null,null,null,null,{"$f":"IF(ISERROR(VLOOKUP(F59,$R$7:$S$19,2,FALSE)), \"\", VLOOKUP(F59,$R$7:$S$19,2,FALSE))","v":""},{"$f":"IF(ISERROR(VLOOKUP(H59,$R$7:$S$19,2,FALSE)), \"\", VLOOKUP(H59,$R$7:$S$19,2,FALSE))","v":""},null,null,null,null,null,90,1060,2.35,2]
[null,null,null,null,null,null,null,null,null,null,null,3.6749999999999998,3.375,500,42,null,null,null,null,null,null,null,null,null,null,null,null,89,1050,2.375,2]
[null,null,null,null,null,null,null,null,null,null,null,3.7,3.4,490,42,null,null,null,null,null,null,null,null,null,null,null,null,88,1040,2.4500000000000002,2]
[null,"Highlight each core course completed before prospect's senior year.",null,null,null,null,null,null,null,null,null,3.7250000000000001,3.4249999999999998,470,41,null,null,null,null,null,null,null,null,null,null,null,null,87,1030,2.4750000000000001,2]
["CORE COURSES",null,null,{"$f":"SUM(E6:E17,E20:E28,E31:E36,E39:E44,E47:E61)","v":0},null,"SAT","M",null,"V",null,null,3.75,3.45,460,41,null,null,null,null,null,null,null,null,null,null,null,null,86,1020,2.5,2]
[null,null,null,null,null,null,null,null,null,null,null,3.7749999999999999,3.4750000000000001,440,40,null,null,null,null,null,null,null,null,null,null,null,null,86,1010,2.5249999999999999,2.0249999999999999]
[null,null,null,null,null,null,null,null,null,null,null,3.8,3.5,430,39,null,null,null,null,null,"sat",{"$f":"H63+J63","v":0},null,null,null,null,null,85,1000,2.5499999999999998,2.0499999999999998]
["GPA",null,{"$f":"IF(SUM(J6:J17,J20:J28,J31:J36,J39:J44,J47:J61)=0,\"\",SUM(J6:J17,J20:J28,J31:J36,J39:J44,J47:J61)/D63)","v":""},null,null,"ACT","M",null,"S",null,null,3.8250000000000002,3.5249999999999999,410,38,null,null,null,null,null,null,null,null,null,null,null,null,84,990,2.5750000000000002,2.0750000000000002]
[null,null,null,null,null,null,"E",null,"R",null,null,3.85,3.55,400,37,null,null,null,null,null,null,null,null,null,null,null,null,83,980,2.6,2.1]
[null,null,null,null,null,null,null,null,null,null,null,3.875,null,null,null,null,null,null,null,null,"act",{"$f":"H66+H67+J66+J67","v":0},null,null,null,null,null,82,970,2.625,2.125]
["NOTES",null,null,null,null,null,null,null,null,null,null,null,null,null,null,null,null,null,null,null,null,null,null,null,null,null,null,81,960,2.65,2.15]
[null,null,null,null,null,null,null,null,null,null,null,null,null,null,null,null,null,null,null,null,null,null,null,null,null,null,null,80,950,2.6749999999999998,2.1749999999999998]
[null,null,null,null,null,null,null,null,null,null,null,null,null,null,null,null,null,null,null,null,null,null,null,null,null,null,null,79,940,2.7,2.2000000000000002]
[null,null,null,null,null,null,null,null,null,null,null,null,null,null,null,null,null,null,null,null,null,null,null,null,null,null,null,78,930,2.7250000000000001,2.2250000000000001]
[null,null,null,null,null,null,null,null,null,null,null,null,null,null,null,null,null,null,null,null,null,null,null,null,null,null,null,77,920,2.75,2.25]
[null,null,null,null,null,null,null,null,null,null,null,null,null,null,null,null,null,null,null,null,null,null,null,null,null,null,null,76,910,2.7749999999999999,2.2749999999999999]
[null,null,null,null,null,null,null,null,null,null,null,null,null,null,null,null,null,null,null,null,null,null,null,null,null,null,null,75,900,2.8,2.2999999999999998]
[null,null,null,null,null,null,null,null,null,null,null,null,null,null,null,null,null,null,null,null,null,null,null,null,null,null,null,74,890,2.8250000000000002,2.3250000000000002]
[null,null,null,null,null,null,null,null,null,null,null,null,null,null,null,null,null,null,null,null,null,null,null,null,null,null,null,73,880,2.85,2.35]
[null,null,null,null,null,null,null,null,null,null,null,null,null,null,null,null,null,null,null,null,null,null,null,null,null,null,null,72,870,2.875,2.375]
[null,null,null,null,null,null,null,null,null,null,null,null,null,null,null,null,null,null,null,null,null,null,null,null,null,null,null,71,860,2.9,2.4]
[null,null,null,null,null,null,null,null,null,null,null,null,null,null,null,null,null,null,null,null,null,null,null,null,null,null,null,70,850,2.9,2.4249999999999998]
[null,null,null,null,null,null,null,null,null,null,null,null,null,null,null,null,null,null,null,null,null,null,null,null,null,null,null,70,840,2.9249999999999998,2.4500000000000002]
[null,null,null,null,null,null,null,null,null,null,null,null,null,null,null,null,null,null,null,null,null,null,null,null,null,null,null,69,830,2.95,2.4750000000000001]
[null,null,null,null,null,null,null,null,null,null,null,null,null,null,null,null,null,null,null,null,null,null,null,null,null,null,null,68,820,2.9750000000000001,2.5]
[null,null,null,null,null,null,null,null,null,null,null,null,null,null,null,null,null,null,null,null,null,null,null,null,null,null,null,67,810,3,2.5249999999999999]
[null,null,null,null,null,null,null,null,null,null,null,null,null,null,null,null,null,null,null,null,null,null,null,null,null,null,null,66,800,3.0249999999999999,2.5499999999999998]
[null,null,null,null,null,null,null,null,null,null,null,null,null,null,null,null,null,null,null,null,null,null,null,null,null,null,null,65,790,3.05,2.5750000000000002]
[null,null,null,null,null,null,null,null,null,null,null,null,null,null,null,null,null,null,null,null,null,null,null,null,null,null,null,64,780,3.0750000000000002,2.6]
[null,null,null,null,null,null,null,null,null,null,null,null,null,null,null,null,null,null,null,null,null,null,null,null,null,null,null,63,770,3.1,2.625]
[null,null,null,null,null,null,null,null,null,null,null,null,null,null,null,null,null,null,null,null,null,null,null,null,null,null,null,62,760,3.125,2.65]
[null,null,null,null,null,null,null,null,null,null,null,null,null,null,null,null,null,null,null,null,null,null,null,null,null,null,null,61,750,3.125,2.6749999999999998]
[null,null,null,null,null,null,null,null,null,null,null,null,null,null,null,null,null,null,null,null,null,null,null,null,null,null,null,61,740,3.15,2.7]
[null,null,null,null,null,null,null,null,null,null,null,null,null,null,null,null,null,null,null,null,null,null,null,null,null,null,null,60,730,3.1749999999999998,2.7250000000000001]
[null,null,null,null,null,null,null,null,null,null,null,null,null,null,null,null,null,null,null,null,null,null,null,null,null,null,null,59,720,3.2,2.75]
[null,null,null,null,null,null,null,null,null,null,null,null,null,null,null,null,null,null,null,null,null,null,null,null,null,null,null,58,710,3.2250000000000001,2.7749999999999999]
[null,null,null,null,null,null,null,null,null,null,null,null,null,null,null,null,null,null,null,null,null,null,null,null,null,null,null,57,700,3.25,2.8]
[null,null,null,null,null,null,null,null,null,null,null,null,null,null,null,null,null,null,null,null,null,null,null,null,null,null,null,56,690,3.2749999999999999,2.8250000000000002]
[null,null,null,null,null,null,null,null,null,null,null,null,null,null,null,null,null,null,null,null,null,null,null,null,null,null,null,56,680,3.3,2.85]
[null,null,null,null,null,null,null,null,null,null,null,null,null,null,null,null,null,null,null,null,null,null,null,null,null,null,null,55,670,3.3250000000000002,2.875]
[null,null,null,null,null,null,null,null,null,null,null,null,null,null,null,null,null,null,null,null,null,null,null,null,null,null,null,54,660,3.35,2.9]
[null,null,null,null,null,null,null,null,null,null,null,null,null,null,null,null,null,null,null,null,null,null,null,null,null,null,null,53,650,3.375,2.9249999999999998]
[null,null,null,null,null,null,null,null,null,null,null,null,null,null,null,null,null,null,null,null,null,null,null,null,null,null,null,53,640,3.4,2.95]
[null,null,null,null,null,null,null,null,null,null,null,null,null,null,null,null,null,null,null,null,null,null,null,null,null,null,null,52,630,3.4249999999999998,2.9750000000000001]
[null,null,null,null,null,null,null,null,null,null,null,null,null,null,null,null,null,null,null,null,null,null,null,null,null,null,null,52,620,3.45,3]
[null,null,null,null,null,null,null,null,null,null,null,null,null,null,null,null,null,null,null,null,null,null,null,null,null,null,null,51,610,3.4750000000000001,3.0249999999999999]
[null,null,null,null,null,null,null,null,null,null,null,null,null,null,null,null,null,null,null,null,null,null,null,null,null,null,null,50,600,3.5,3.05]
[null,null,null,null,null,null,null,null,null,null,null,null,null,null,null,null,null,null,null,null,null,null,null,null,null,null,null,50,590,3.5249999999999999,3.0750000000000002]
[null,null,null,null,null,null,null,null,null,null,null,null,null,null,null,null,null,null,null,null,null,null,null,null,null,null,null,49,580,3.55,3.1]
[null,null,null,null,null,null,null,null,null,null,null,null,null,null,null,null,null,null,null,null,null,null,null,null,null,null,null,49,570,3.5750000000000002,3.125]
[null,null,null,null,null,null,null,null,null,null,null,null,null,null,null,null,null,null,null,null,null,null,null,null,null,null,null,48,560,3.6,3.15]
[null,null,null,null,null,null,null,null,null,null,null,null,null,null,null,null,null,null,null,null,null,null,null,null,null,null,null,47,550,3.625,3.1749999999999998]
[null,null,null,null,null,null,null,null,null,null,null,null,null,null,null,null,null,null,null,null,null,null,null,null,null,null,null,47,540,3.65,3.2]
[null,null,null,null,null,null,null,null,null,null,null,null,null,null,null,null,null,null,null,null,null,null,null,null,null,null,null,46,530,3.6749999999999998,3.2250000000000001]
[null,null,null,null,null,null,null,null,null,null,null,null,null,null,null,null,null,null,null,null,null,null,null,null,null,null,null,46,520,3.7,3.25]
[null,null,null,null,null,null,null,null,null,null,null,null,null,null,null,null,null,null,null,null,null,null,null,null,null,null,null,45,510,3.7250000000000001,3.2749999999999999]
[null,null,null,null,null,null,null,null,null,null,null,null,null,null,null,null,null,null,null,null,null,null,null,null,null,null,null,44,500,3.75,3.3]
[null,null,null,null,null,null,null,null,null,null,null,null,null,null,null,null,null,null,null,null,null,null,null,null,null,null,null,44,490,3.7749999999999999,3.3250000000000002]
[null,null,null,null,null,null,null,null,null,null,null,null,null,null,null,null,null,null,null,null,null,null,null,null,null,null,null,43,480,3.8,3.35]
[null,null,null,null,null,null,null,null,null,null,null,null,null,null,null,null,null,null,null,null,null,null,null,null,null,null,null,42,470,3.8250000000000002,3.375]
[null,null,null,null,null,null,null,null,null,null,null,null,null,null,null,null,null,null,null,null,null,null,null,null,null,null,null,42,460,3.85,3.4]
[null,null,null,null,null,null,null,null,null,null,null,null,null,null,null,null,null,null,null,null,null,null,null,null,null,null,null,41,450,3.875,3.4249999999999998]
[null,null,null,null,null,null,null,null,null,null,null,null,null,null,null,null,null,null,null,null,null,null,null,null,null,null,null,41,440,3.9,3.45]
[null,null,null,null,null,null,null,null,null,null,null,null,null,null,null,null,null,null,null,null,null,null,null,null,null,null,null,40,430,3.9249999999999998,3.4750000000000001]
[null,null,null,null,null,null,null,null,null,null,null,null,null,null,null,null,null,null,null,null,null,null,null,null,null,null,null,39,420,3.95,3.5]
[null,null,null,null,null,null,null,null,null,null,null,null,null,null,null,null,null,null,null,null,null,null,null,null,null,null,null,38,410,3.9750000000000001,3.5249999999999999]
[null,null,null,null,null,null,null,null,null,null,null,null,null,null,null,null,null,null,null,null,null,null,null,null,null,null,null,37,400,4,3.55]

{"sheet":"Sheet2","index":1,"n_rows":0,"n_cols":0,"rows_kept":0,"cut":false,"hidden":false,"merged":[]}

{"sheet":"Sheet3","index":2,"n_rows":0,"n_cols":0,"rows_kept":0,"cut":false,"hidden":false,"merged":[]}